Workbook

Sheet Rebate Analysis
A1: WM Skagit County | G1: WM Skagit County | M1: WM Skagit County | S1: WM Skagit County | Y1: WM Skagit County
A2: 2020 - 2021 Rebate Calculation | G2: 2019 - 2020 Rebate Calculation | M2: 2018 - 2019 Rebate Calculation | S2: 2017 - 2018 Rebate Calculation | Y2: 2016 - 2017 Rebate Calculation
A5: Residential | G5: Residential | M5: Residential | S5: Residential | Y5: Residential
D7: Commodity | E7: Total | J7: Commodity | K7: Total | P7: Commodity | Q7: Total | V7: Commodity | W7: Total | AB7: Commodity | AC7: Total
C8: Customers | D8: Credit | E8: Credits | I8: Customers | J8: Credit | K8: Credits | O8: Customers | P8: Credit | Q8: Credits | U8: Customers | V8: Credit | W8: Credits | AA8: Customers | AB8: Credit | AC8: Credits
A9: Projected Revenue May 2019-Apr 2020 | G9: Projected Revenue May 2018-Apr 2019 | M9: Projected Revenue May 2017-Apr 2018 | S9: Projected Revenue May 2016-Apr 2017 | Y9: Projected Revenue May 2015-Apr 2016
A10: May - June projected value without adjustment factor | C10: =+Customers!C20+Customers!D20 -> 22959 | D10: =+J11 -> 1.25 | E10: =C10*D10 -> 28698.75 | G10: May - June projected value without adjustment factor | I10: 21720 | J10: =+P11 -> 2.04 | K10: =I10*J10 -> 44308.8 | M10: May - June projected value without adjustment factor | O10: 20086 | P10: =+V11 -> 1.71 | Q10: =O10*P10 -> 34347.06 | S10: May - June projected value without adjustment factor | U10: 18118 | V10: =+AB11 -> 2.32 | W10: =U10*V10 -> 42033.76 | Y10: May - June projected value without adjustment factor | AA10: 17149 | AB10: 2.37 | AC10: =AA10*AB10 -> 40643.13
A11: July - April projected value without adjustment factor | C11: =SUM(Customers!E20:N20) -> 116746 | D11: =+L25 -> 0.6 | E11: =C11*D11 -> 70047.6 | G11: July - April projected value without adjustment factor | I11: 111104 | J11: =+R25 -> 1.25 | K11: =I11*J11 -> 138880 | M11: July - April projected value without adjustment factor | O11: 104400 | P11: =+X25 -> 2.04 | Q11: =O11*P11 -> 212976 | S11: July - April projected value without adjustment factor | U11: 93257 | V11: =+AD25 -> 1.71 | W11: =U11*V11 -> 159469.47 | Y11: July - April projected value without adjustment factor | AA11: 87893 | AB11: 2.32 | AC11: =AA11*AB11 -> 203911.76
A12: Total | C12: =SUM(C10:C11) -> 139705 | E12: =SUM(E10:E11) -> 98746.35 | G12: Total | I12: =SUM(I10:I11) -> 132824 | K12: =SUM(K10:K11) -> 183188.8 | M12: Total | O12: =SUM(O10:O11) -> 124486 | Q12: =SUM(Q10:Q11) -> 247323.06 | S12: Total | U12: =SUM(U10:U11) -> 111375 | W12: =SUM(W10:W11) -> 201503.23 | Y12: Total | AA12: =SUM(AA10:AA11) -> 105042 | AC12: =SUM(AC10:AC11) -> 244554.89
A14: Actual Commodity Revenue | E14: =+'Commodity Revenue'!Y40 -> 36117.61253 | G14: Actual Commodity Revenue | K14: 99599.59843 | M14: Actual Commodity Revenue | Q14: 205192 | S14: Actual Commodity Revenue | W14: 231469 | Y14: Actual Commodity Revenue (adj. to reflect current customers) | AC14: 183627
A16: Owe Customer (company) | E16: =E14-E12 -> -62628.73747 | G16: Owe Customer (company) | K16: =K14-K12 -> -83589.20157 | M16: Owe Customer (company) | Q16: =Q14-Q12 -> -42131.06 | S16: Owe Customer (company) | W16: =W14-W12 -> 29965.77 | Y16: Owe Customer (company) | AC16: =AC14-AC12 -> -60927.89
A18: Total Current Customers | E18: =+C12 -> 139705 | G18: Total Current Customers | K18: =+I12 -> 132824 | M18: Total Current Customers | Q18: =+O12 -> 124486 | S18: Total Current Customers | W18: =+U12 -> 111375 | Y18: Total Customers | AC18: =+AA12 -> 105042
A20: Adjust for Under/(Over) payment in 2019-2020 | F20: =ROUND(+E16/E18,2) -> -0.45 | G20: Adjust for Under/(Over) payment in 2018-2019 | L20: =+K16/K18 -> -0.6293230257 | M20: Adjust for Under/(Over) payment in 2017-2018 | R20: =+Q16/Q18 -> -0.3384401459 | S20: Adjust for Under/(Over) payment in 2016-2017 | X20: =+W16/W18 -> 0.2690529293 | Y20: Adjust for Under/(Over) payment in 2015-2016 | AD20: -0.65
A23: Projected Rev. May 2020-Apr 2021 (based on most recent 6 mo. avg.) | E23: =SUM('Commodity Revenue'!Y34:Y39) -> 15859.8537 | G23: Projected Rev. May 2019-Apr 2020 (based on most recent 6 mo. avg.) | K23: 39969.88418 | M23: Projected Rev. May 2018-Apr 2019(based on 6 mo. avg. - since "China Sword") | Q23: 78930 | S23: Projected Revenue May 2017-Apr 2018 | W23: =+W14 -> 231469 | Y23: Projected Revenue May 2016-Apr 2017 | AC23: =+AC14 -> 183627
A24: Total Current Customers (most recent 6 months) | E24: =SUM(Customers!I20:N20) -> 70108 | G24: Total Current Customers (annualized) | K24: 66822 | M24: Total Current Customers (most recent 6 months) | Q24: 63172 | S24: Total Customers | W24: 113724 | Y24: Total Customers | AC24: 107280
A25: Projected Value | F25: =ROUND(+E23/E24,2) -> 0.23 | G25: Projected Value | L25: =ROUND(+K23/K24,2) -> 0.6 | M25: Projected Value | R25: =ROUND(+Q23/Q24,2) -> 1.25 | S25: Projected Value | X25: 2.04 | Y25: Projected Value | AD25: =ROUND(+AC23/AC24,2) -> 1.71
A27: Residential Commodity Adjustment - as calculated | F27: =SUM(F20:F25) -> -0.22 | G27: Residential Commodity Adjustment - as calculated | L27: =SUM(L20:L25) -> -0.02932302572 | M27: Residential Commodity Adjustment | R27: =SUM(R20:R25) -> 0.9115598541 | S27: Residential Commodity Adjustment | X27: =SUM(X20:X25) -> 2.309052929 | Y27: Residential Commodity Adjustment | AD27: =SUM(AD20:AD25) -> 1.06
A29: Estimated cost of customer notice letters | D29: 8313.5 | F29: =ROUND(-D29/12400/12,2) -> -0.06 | G29: Residential Commodity Adjustment - as proposed | L29: 0
A31: Residential Commodity Adjustment - as including cost of customer notices | F31: =+F27+F29 -> -0.28

Sheet Commodity Revenue
A1: Waste Management of Skagit County
A2: Single Stream Tonnage and Revenue
C4: Total Single Stream Tonnage Processed | O4: Total Single Stream Commodity Revenue | AA4: Average rate per ton
D5: Mixed | J5: Natural | K5: Colored | L5: Mixed | P5: Mixed | V5: Natural | W5: Colored | X5: Mixed | AB5: Mixed | AH5: Natural | AI5: Colored | AJ5: Mixed
C6: ONP 6 | D6: Paper | E6: OCC | F6: Alum. | G6: Tin | H6: Glass | I6: PET | J6: HDPE | K6: HDPE | L6: Plastics | M6: Total | O6: ONP 6 | P6: Paper | Q6: OCC | R6: Alum. | S6: Tin | T6: Glass | U6: PET | V6: HDPE | W6: HDPE | X6: Plastics | Y6: Total | AA6: ONP 6 | AB6: Paper | AC6: OCC | AD6: Alum. | AE6: Tin | AF6: Glass | AG6: PET | AH6: HDPE | AI6: HDPE | AJ6: Plastics
C7: =+'CRC Composition'!$AC8 -> 0 | D7: =+'CRC Composition'!$AC9 -> 0.4495759999 | E7: =+'CRC Composition'!$AC10 -> 0.2708195855 | F7: =+'CRC Composition'!$AC11 -> 0.01002387341 | G7: =+'CRC Composition'!AC12 -> 0.01134730357 | H7: =+'CRC Composition'!AC13 -> 0.2371666287 | I7: =+'CRC Composition'!AC14 -> 0.009476533652 | J7: =+'CRC Composition'!$AC15 -> 0.004306535712 | K7: =+'CRC Composition'!$AC16 -> 0.003936016813 | L7: =+'CRC Composition'!$AC17 -> 0.00334752271 | M7: =+M20/$M$20 -> 1
A8: May, 19 | C8: =+'Tonnages Collected'!$E10*C$7 -> 0 | D8: =+'Tonnages Collected'!$E10*D$7 -> 304.7245429 | E8: =+'Tonnages Collected'!$E10*E$7 -> 183.5626777 | F8: =+'Tonnages Collected'!$E10*F$7 -> 6.794224434 | G8: =+'Tonnages Collected'!$E10*G$7 -> 7.691251074 | H8: =+'Tonnages Collected'!$E10*H$7 -> 160.7525592 | I8: =+'Tonnages Collected'!$E10*I$7 -> 6.423235194 | J8: =+'Tonnages Collected'!$E10*J$7 -> 2.918988394 | K8: =+'Tonnages Collected'!$E10*K$7 -> 2.667849094 | L8: =+'Tonnages Collected'!$E10*L$7 -> 2.268965264 | M8: =SUM(C8:L8) -> 677.8042932 | O8: =+C8*'CRC Prices'!B8 -> 0 | P8: =+D8*'CRC Prices'!C8 -> -1413.921879 | Q8: =+E8*'CRC Prices'!D8 -> 9016.59873 | R8: =+F8*'CRC Prices'!E8 -> 6767.726959 | S8: =+G8*'CRC Prices'!F8 -> 980.4037744 | T8: =+H8*'CRC Prices'!G8 -> -8574.541506 | U8: =+I8*'CRC Prices'!H8 -> 1091.949983 | V8: =+J8*'CRC Prices'!I8 -> 1225.975126 | W8: =+K8*'CRC Prices'!J8 -> 613.6052916 | X8: =+L8*'CRC Prices'!K8 -> -317.655137 | Y8: =SUM(O8:X8) -> 9390.141341 | AA8: =+O8/C8 ->  | AB8: =+P8/D8 -> -4.64 | AC8: 49.12 | AD8: 996.1 | AE8: 127.47 | AF8: -53.34 | AG8: 170 | AH8: 420 | AI8: 230 | AJ8: =+X8/L8 -> -140
A9: Jun | C9: =+'Tonnages Collected'!$E11*C$7 -> 0 | D9: =+'Tonnages Collected'!$E11*D$7 -> 256.5778132 | E9: =+'Tonnages Collected'!$E11*E$7 -> 154.5596229 | F9: =+'Tonnages Collected'!$E11*F$7 -> 5.720731356 | G9: =+'Tonnages Collected'!$E11*G$7 -> 6.476027045 | H9: =+'Tonnages Collected'!$E11*H$7 -> 135.3535219 | I9: =+'Tonnages Collected'!$E11*I$7 -> 5.408358723 | J9: =+'Tonnages Collected'!$E11*J$7 -> 2.457785815 | K9: =+'Tonnages Collected'!$E11*K$7 -> 2.246326731 | L9: =+'Tonnages Collected'!$E11*L$7 -> 1.910466877 | M9: 570.7106545 | O9: =+C9*'CRC Prices'!B9 -> 0 | P9: =+D9*'CRC Prices'!C9 -> 161.6440223 | Q9: =+E9*'CRC Prices'!D9 -> 7540.964 | R9: =+F9*'CRC Prices'!E9 -> 5352.945537 | S9: =+G9*'CRC Prices'!F9 -> 768.2510884 | T9: =+H9*'CRC Prices'!G9 -> -7219.756859 | U9: =+I9*'CRC Prices'!H9 -> 1000.546364 | V9: =+J9*'CRC Prices'!I9 -> 1032.270042 | W9: =+K9*'CRC Prices'!J9 -> 516.6551482 | X9: =+L9*'CRC Prices'!K9 -> -267.4653627 | Y9: =SUM(O9:X9) -> 8886.053981 | AA9: =+O9/C9 ->  | AB9: 0.63 | AC9: 48.79 | AD9: 935.71 | AE9: 118.63 | AF9: -53.34 | AG9: 185 | AH9: 420 | AI9: 230 | AJ9: =+X9/L9 -> -140
A10: Jul | C10: =+'Tonnages Collected'!$E12*C$7 -> 0 | D10: =+'Tonnages Collected'!$E12*D$7 -> 303.25075 | E10: =+'Tonnages Collected'!$E12*E$7 -> 182.6748813 | F10: =+'Tonnages Collected'!$E12*F$7 -> 6.761364333 | G10: =+'Tonnages Collected'!$E12*G$7 -> 7.654052525 | H10: =+'Tonnages Collected'!$E12*H$7 -> 159.9750833 | I10: =+'Tonnages Collected'!$E12*I$7 -> 6.392169373 | J10: =+'Tonnages Collected'!$E12*J$7 -> 2.904870778 | K10: =+'Tonnages Collected'!$E12*K$7 -> 2.654946107 | L10: =+'Tonnages Collected'!$E12*L$7 -> 2.257991469 | M10: 674.5261092 | O10: =+C10*'CRC Prices'!B10 -> 0 | P10: =+D10*'CRC Prices'!C10 -> -873.3621601 | Q10: =+E10*'CRC Prices'!D10 -> 8857.904994 | R10: =+F10*'CRC Prices'!E10 -> 6596.657497 | S10: =+G10*'CRC Prices'!F10 -> 852.3552892 | T10: =+H10*'CRC Prices'!G10 -> -8533.070944 | U10: =+I10*'CRC Prices'!H10 -> 1182.551334 | V10: =+J10*'CRC Prices'!I10 -> 1220.045727 | W10: =+K10*'CRC Prices'!J10 -> 557.5386824 | X10: =+L10*'CRC Prices'!K10 -> -316.1188057 | Y10: 9544.501613 | AB10: -2.88 | AC10: 48.49 | AD10: 975.64 | AE10: 111.36 | AF10: -53.34 | AG10: 185 | AH10: 420 | AI10: 210 | AJ10: -140
A11: Aug | C11: =+'Tonnages Collected'!$E13*C$7 -> 0 | D11: =+'Tonnages Collected'!$E13*D$7 -> 273.0863525 | E11: =+'Tonnages Collected'!$E13*E$7 -> 164.5041835 | F11: =+'Tonnages Collected'!$E13*F$7 -> 6.088810409 | G11: =+'Tonnages Collected'!$E13*G$7 -> 6.892702772 | H11: =+'Tonnages Collected'!$E13*H$7 -> 144.0623378 | I11: =+'Tonnages Collected'!$E13*I$7 -> 5.756339327 | J11: =+'Tonnages Collected'!$E13*J$7 -> 2.615922846 | K11: =+'Tonnages Collected'!$E13*K$7 -> 2.390858219 | L11: =+'Tonnages Collected'!$E13*L$7 -> 2.033388719 | M11: 607.430896 | O11: =+C11*'CRC Prices'!B11 -> 0 | P11: =+D11*'CRC Prices'!C11 -> -385.051757 | Q11: =+E11*'CRC Prices'!D11 -> 10605.58471 | R11: =+F11*'CRC Prices'!E11 -> 5583.682697 | S11: =+G11*'CRC Prices'!F11 -> 798.5885432 | T11: =+H11*'CRC Prices'!G11 -> -7684.285098 | U11: =+I11*'CRC Prices'!H11 -> 748.3241125 | V11: =+J11*'CRC Prices'!I11 -> 1072.528367 | W11: =+K11*'CRC Prices'!J11 -> 478.1716438 | X11: =+L11*'CRC Prices'!K11 -> -284.6744207 | Y11: 10932.8688 | AB11: -1.41 | AC11: 64.47 | AD11: 917.04 | AE11: 115.86 | AF11: -53.34 | AG11: 130 | AH11: 410 | AI11: 200 | AJ11: -140
A12: Sep | C12: =+'Tonnages Collected'!$E14*C$7 -> 0 | D12: =+'Tonnages Collected'!$E14*D$7 -> 285.0230998 | E12: =+'Tonnages Collected'!$E14*E$7 -> 171.6947474 | F12: =+'Tonnages Collected'!$E14*F$7 -> 6.354955497 | G12: =+'Tonnages Collected'!$E14*G$7 -> 7.193986416 | H12: =+'Tonnages Collected'!$E14*H$7 -> 150.3593779 | I12: =+'Tonnages Collected'!$E14*I$7 -> 6.00795193 | J12: =+'Tonnages Collected'!$E14*J$7 -> 2.730266202 | K12: =+'Tonnages Collected'!$E14*K$7 -> 2.495363883 | L12: =+'Tonnages Collected'!$E14*L$7 -> 2.122269204 | M12: 633.9820182 | O12: =+C12*'CRC Prices'!B12 -> 0 | P12: =+D12*'CRC Prices'!C12 -> 199.5161698 | Q12: =+E12*'CRC Prices'!D12 -> 9920.522503 | R12: =+F12*'CRC Prices'!E12 -> 5859.01477 | S12: =+G12*'CRC Prices'!F12 -> 740.5489617 | T12: =+H12*'CRC Prices'!G12 -> -8020.169219 | U12: =+I12*'CRC Prices'!H12 -> 653.0042953 | V12: =+J12*'CRC Prices'!I12 -> 1365.133101 | W12: =+K12*'CRC Prices'!J12 -> 548.9800542 | X12: =+L12*'CRC Prices'!K12 -> -355.4800916 | Y12: 10911.07054 | AB12: 0.7 | AC12: 57.78 | AD12: 921.96 | AE12: 102.94 | AF12: -53.34 | AG12: 108.69 | AH12: 500 | AI12: 220 | AJ12: -167.5
A13: Oct | C13: =+'Tonnages Collected'!$E15*C$7 -> 0 | D13: =+'Tonnages Collected'!$E15*D$7 -> 295.1099367 | E13: =+'Tonnages Collected'!$E15*E$7 -> 177.7709458 | F13: =+'Tonnages Collected'!$E15*F$7 -> 6.579854459 | G13: =+'Tonnages Collected'!$E15*G$7 -> 7.448578299 | H13: =+'Tonnages Collected'!$E15*H$7 -> 155.6805274 | I13: =+'Tonnages Collected'!$E15*I$7 -> 6.220570596 | J13: =+'Tonnages Collected'!$E15*J$7 -> 2.826889072 | K13: =+'Tonnages Collected'!$E15*K$7 -> 2.583673667 | L13: =+'Tonnages Collected'!$E15*L$7 -> 2.197375338 | M13: 656.4183513 | O13: =+C13*'CRC Prices'!B13 -> 0 | P13: =+D13*'CRC Prices'!C13 -> -2676.647125 | Q13: =+E13*'CRC Prices'!D13 -> 9215.64583 | R13: =+F13*'CRC Prices'!E13 -> 5893.246646 | S13: =+G13*'CRC Prices'!F13 -> 554.0252539 | T13: =+H13*'CRC Prices'!G13 -> -8303.999332 | U13: =+I13*'CRC Prices'!H13 -> 520.7861703 | V13: =+J13*'CRC Prices'!I13 -> 2280.140456 | W13: =+K13*'CRC Prices'!J13 -> 671.7551534 | X13: =+L13*'CRC Prices'!K13 -> -368.0603691 | Y13: 7786.892683 | AB13: -9.07 | AC13: 51.84 | AD13: 895.65 | AE13: 74.38 | AF13: -53.34 | AG13: 83.72 | AH13: 806.59 | AI13: 260 | AJ13: -167.5
A14: Nov | C14: =+'Tonnages Collected'!$E16*C$7 -> 0 | D14: =+'Tonnages Collected'!$E16*D$7 -> 242.3388913 | E14: =+'Tonnages Collected'!$E16*E$7 -> 145.9822546 | F14: =+'Tonnages Collected'!$E16*F$7 -> 5.403256334 | G14: =+'Tonnages Collected'!$E16*G$7 -> 6.116636488 | H14: =+'Tonnages Collected'!$E16*H$7 -> 127.8420064 | I14: =+'Tonnages Collected'!$E16*I$7 -> 5.108218986 | J14: =+'Tonnages Collected'!$E16*J$7 -> 2.321389687 | K14: =+'Tonnages Collected'!$E16*K$7 -> 2.121665638 | L14: =+'Tonnages Collected'!$E16*L$7 -> 1.804444504 | M14: 539.0387639 | O14: =+C14*'CRC Prices'!B14 -> 0 | P14: =+D14*'CRC Prices'!C14 -> -3104.361197 | Q14: =+E14*'CRC Prices'!D14 -> 7529.764692 | R14: =+F14*'CRC Prices'!E14 -> 4074.433504 | S14: =+G14*'CRC Prices'!F14 -> 500.9525284 | T14: =+H14*'CRC Prices'!G14 -> -6819.092621 | U14: =+I14*'CRC Prices'!H14 -> 409.6280805 | V14: =+J14*'CRC Prices'!I14 -> 1996.395131 | W14: =+K14*'CRC Prices'!J14 -> 657.7163476 | X14: =+L14*'CRC Prices'!K14 -> -302.2444544 | Y14: 4943.19201 | AB14: -12.81 | AC14: 51.58 | AD14: 754.07 | AE14: 81.9 | AF14: -53.34 | AG14: 80.19 | AH14: 860 | AI14: 310 | AJ14: -167.5
A15: Dec | C15: =+'Tonnages Collected'!$E17*C$7 -> 0 | D15: =+'Tonnages Collected'!$E17*D$7 -> 304.8107388 | E15: =+'Tonnages Collected'!$E17*E$7 -> 183.6146012 | F15: =+'Tonnages Collected'!$E17*F$7 -> 6.796146282 | G15: =+'Tonnages Collected'!$E17*G$7 -> 7.693426659 | H15: =+'Tonnages Collected'!$E17*H$7 -> 160.7980304 | I15: =+'Tonnages Collected'!$E17*I$7 -> 6.425052102 | J15: =+'Tonnages Collected'!$E17*J$7 -> 2.919814074 | K15: =+'Tonnages Collected'!$E17*K$7 -> 2.668603735 | L15: =+'Tonnages Collected'!$E17*L$7 -> 2.269607075 | M15: 677.9960203 | O15: =+C15*'CRC Prices'!B15 -> 0 | P15: =+D15*'CRC Prices'!C15 -> -4605.690263 | Q15: =+E15*'CRC Prices'!D15 -> 8830.026171 | R15: =+F15*'CRC Prices'!E15 -> 5948.734802 | S15: =+G15*'CRC Prices'!F15 -> 766.9577037 | T15: =+H15*'CRC Prices'!G15 -> -8576.966944 | U15: =+I15*'CRC Prices'!H15 -> 483.4209202 | V15: =+J15*'CRC Prices'!I15 -> 2948.895422 | W15: =+K15*'CRC Prices'!J15 -> 693.8369711 | X15: =+L15*'CRC Prices'!K15 -> -380.1591851 | Y15: 6109.055598 | AB15: -15.11 | AC15: 48.09 | AD15: 875.31 | AE15: 99.69 | AF15: -53.34 | AG15: 75.24 | AH15: 1009.96 | AI15: 260 | AJ15: -167.5
A16: Jan., '20 | C16: =+'Tonnages Collected'!$E18*C$7 -> 0 | D16: =+'Tonnages Collected'!$E18*D$7 -> 278.1241676 | E16: =+'Tonnages Collected'!$E18*E$7 -> 167.5389073 | F16: =+'Tonnages Collected'!$E18*F$7 -> 6.201134957 | G16: =+'Tonnages Collected'!$E18*G$7 -> 7.019857286 | H16: =+'Tonnages Collected'!$E18*H$7 -> 146.7199566 | I16: =+'Tonnages Collected'!$E18*I$7 -> 5.862530549 | J16: =+'Tonnages Collected'!$E18*J$7 -> 2.664180606 | K16: =+'Tonnages Collected'!$E18*K$7 -> 2.434964055 | L16: =+'Tonnages Collected'!$E18*L$7 -> 2.070900064 | M16: 618.636599 | O16: =+C16*'CRC Prices'!B16 -> 0 | P16: =+D16*'CRC Prices'!C16 -> -1312.746071 | Q16: =+E16*'CRC Prices'!D16 -> 9028.671714 | R16: =+F16*'CRC Prices'!E16 -> 5487.632369 | S16: =+G16*'CRC Prices'!F16 -> 807.0027936 | T16: =+H16*'CRC Prices'!G16 -> -7826.042485 | U16: =+I16*'CRC Prices'!H16 -> 820.7542768 | V16: =+J16*'CRC Prices'!I16 -> 2780.951642 | W16: =+K16*'CRC Prices'!J16 -> 633.0906542 | X16: =+L16*'CRC Prices'!K16 -> -346.8757608 | Y16: 10072.43913 | AB16: -4.72 | AC16: 53.89 | AD16: 884.94 | AE16: 114.96 | AF16: -53.34 | AG16: 140 | AH16: 1043.83 | AI16: 260 | AJ16: -167.5
A17: Feb | C17: =+'Tonnages Collected'!$E19*C$7 -> 0 | D17: =+'Tonnages Collected'!$E19*D$7 -> 249.6109462 | E17: =+'Tonnages Collected'!$E19*E$7 -> 150.3628596 | F17: =+'Tonnages Collected'!$E19*F$7 -> 5.565396122 | G17: =+'Tonnages Collected'!$E19*G$7 -> 6.300183239 | H17: =+'Tonnages Collected'!$E19*H$7 -> 131.6782626 | I17: =+'Tonnages Collected'!$E19*I$7 -> 5.261505355 | J17: =+'Tonnages Collected'!$E19*J$7 -> 2.391049464 | K17: =+'Tonnages Collected'!$E19*K$7 -> 2.185332137 | L17: =+'Tonnages Collected'!$E19*L$7 -> 1.858591898 | M17: 555.2141266 | O17: =+C17*'CRC Prices'!B17 -> 0 | P17: =+D17*'CRC Prices'!C17 -> -3561.948202 | Q17: =+E17*'CRC Prices'!D17 -> 8963.130062 | R17: =+F17*'CRC Prices'!E17 -> 4662.132332 | S17: =+G17*'CRC Prices'!F17 -> 632.1603862 | T17: =+H17*'CRC Prices'!G17 -> -7023.718529 | U17: =+I17*'CRC Prices'!H17 -> 894.4559103 | V17: =+J17*'CRC Prices'!I17 -> 2582.333421 | W17: =+K17*'CRC Prices'!J17 -> 349.6531419 | X17: =+L17*'CRC Prices'!K17 -> -311.3141429 | Y17: 7186.88438 | AB17: -14.27 | AC17: 59.61 | AD17: 837.7 | AE17: 100.34 | AF17: -53.34 | AG17: 170 | AH17: 1080 | AI17: 160 | AJ17: -167.5
A18: Mar | C18: =+'Tonnages Collected'!$E20*C$7 -> 0 | D18: =+'Tonnages Collected'!$E20*D$7 -> 258.3875818 | E18: =+'Tonnages Collected'!$E20*E$7 -> 155.6498074 | F18: =+'Tonnages Collected'!$E20*F$7 -> 5.761082468 | G18: =+'Tonnages Collected'!$E20*G$7 -> 6.521705627 | H18: =+'Tonnages Collected'!$E20*H$7 -> 136.3082364 | I18: =+'Tonnages Collected'!$E20*I$7 -> 5.446506518 | J18: =+'Tonnages Collected'!$E20*J$7 -> 2.475121778 | K18: =+'Tonnages Collected'!$E20*K$7 -> 2.262171171 | L18: =+'Tonnages Collected'!$E20*L$7 -> 1.923942333 | M18: 574.7361555 | O18: =+C18*'CRC Prices'!B18 -> 0 | P18: =+D18*'CRC Prices'!C18 -> -6712.909375 | Q18: =+E18*'CRC Prices'!D18 -> 12294.77828 | R18: =+F18*'CRC Prices'!E18 -> 4701.388959 | S18: =+G18*'CRC Prices'!F18 -> 715.5615414 | T18: =+H18*'CRC Prices'!G18 -> -7270.68133 | U18: =+I18*'CRC Prices'!H18 -> 871.4410429 | V18: =+J18*'CRC Prices'!I18 -> 1594.696211 | W18: =+K18*'CRC Prices'!J18 -> 339.3256756 | X18: =+L18*'CRC Prices'!K18 -> -322.2603407 | Y18: 6211.340669 | AB18: -25.98 | AC18: 78.99 | AD18: 816.06 | AE18: 109.72 | AF18: -53.34 | AG18: 160 | AH18: 644.29 | AI18: 150 | AJ18: -167.5
A19: Apr | C19: =+'Tonnages Collected'!$E21*C$7 -> 0 | D19: =+'Tonnages Collected'!$E21*D$7 -> 292.4766486 | E19: =+'Tonnages Collected'!$E21*E$7 -> 176.1846824 | F19: =+'Tonnages Collected'!$E21*F$7 -> 6.521141926 | G19: =+'Tonnages Collected'!$E21*G$7 -> 7.382114078 | H19: =+'Tonnages Collected'!$E21*H$7 -> 154.2913784 | I19: =+'Tonnages Collected'!$E21*I$7 -> 6.165063979 | J19: =+'Tonnages Collected'!$E21*J$7 -> 2.801664529 | K19: =+'Tonnages Collected'!$E21*K$7 -> 2.560619354 | L19: =+'Tonnages Collected'!$E21*L$7 -> 2.177767994 | M19: 650.5610813 | O19: =+C19*'CRC Prices'!B19 -> 0 | P19: =+D19*'CRC Prices'!C19 -> -4986.726859 | Q19: =+E19*'CRC Prices'!D19 -> 15914.76236 | R19: =+F19*'CRC Prices'!E19 -> 4647.878697 | S19: =+G19*'CRC Prices'!F19 -> 491.2796919 | T19: =+H19*'CRC Prices'!G19 -> -8229.902126 | U19: =+I19*'CRC Prices'!H19 -> 924.7595969 | V19: =+J19*'CRC Prices'!I19 -> 1905.13188 | W19: =+K19*'CRC Prices'!J19 -> 153.6371612 | X19: =+L19*'CRC Prices'!K19 -> -364.776139 | Y19: 10456.04426 | AB19: -17.05 | AC19: 90.33 | AD19: 712.74 | AE19: 66.55 | AF19: -53.34 | AG19: 150 | AH19: 680 | AI19: 60 | AJ19: -167.5
C20: =SUM(C8:C19) -> 0 | D20: =SUM(D8:D19) -> 3343.521469 | E20: 2014.100171 | F20: 74.54809858 | G20: 84.39052151 | H20: 1763.821278 | I20: 70.47750263 | J20: 32.02794325 | K20: 29.27237379 | L20: 24.89571074 | M20: 7437.055069 | O20: =SUM(O8:O19) -> 0 | P20: =SUM(P8:P19) -> -29272.2047 | Q20: 117718.354 | R20: 65575.47477 | S20: 8608.087556 | T20: -94082.22699 | U20: 9601.622086 | V20: 22004.49653 | W20: 6213.965925 | X20: -3937.08421 | Y20: =SUM(Y8:Y19) -> 102430.485 | AA20: =+O20/C20 ->  | AB20: =+P20/D20 -> -8.754902568 | AC20: =+Q20/E20 -> 58.44711983 | AD20: =+R20/F20 -> 879.6398033 | AE20: =+S20/G20 -> 102.0030141 | AF20: =+T20/H20 -> -53.34 | AG20: =+U20/I20 -> 136.2366958 | AH20: =+V20/J20 -> 687.0405744 | AI20: =+W20/K20 -> 212.2809025 | AJ20: -158.1430734
C23: Total Single Stream Tonnage Processed | O23: Total Single Stream Commodity Revenue
B24: % | D24: Mixed | J24: Natural | K24: Colored | L24: Mixed | P24: Mixed | V24: Natural | W24: Colored | X24: Mixed | AB24: lbs./
B25: Reg. | C25: =+C6 -> ONP 6 | D25: Paper | E25: =+E6 -> OCC | F25: Alum. | G25: Tin | H25: Glass | I25: PET | J25: HDPE | K25: HDPE | L25: Plastics | M25: Total | O25: =+O6 -> ONP 6 | P25: Paper | Q25: =+Q6 -> OCC | R25: Alum. | S25: Tin | T25: Glass | U25: PET | V25: HDPE | W25: HDPE | X25: Plastics | Y25: Total | AA25: Customers | AB25: Customer
A28: =+A8 -> May, 19 | B28: =+Customers!C$21 -> 0.3500567676 | C28: =+C8*$B28 -> 0 | D28: =+D8*$B28 -> 106.6708885 | E28: =+E8*$B28 -> 64.25735762 | F28: 2.378364244 | G28: 2.69237449 | H28: 56.27252125 | I28: 2.24849695 | J28: 1.021811642 | K28: 0.9338986303 | L28: 0.7942666463 | M28: =SUM(C28:L28) -> 237.26998 | O28: =+O8*$B$40 -> 0 | P28: -498.5574614 | Q28: 3179.307598 | R28: 2386.341722 | S28: 345.6963388 | T28: -3023.43553 | U28: 385.0282109 | V28: 432.2862921 | W28: 216.360961 | X28: -112.007135 | Y28: =SUM(O28:X28) -> 3311.020997 | AA28: =+Customers!C$20 -> 11408 | AB28: =+M28*2000/AA28 -> 41.59712131 | AD28: =+Y28/M28 -> 13.9546562
A29: =+A9 -> Jun | B29: =+Customers!D$21 -> 0.3520143841 | C29: =+C9*$B29 -> 0 | D29: 90.31908088 | E29: =+E9*$B29 -> 54.40721045 | F29: 2.013779725 | G29: 2.279654672 | H29: 47.64638665 | I29: 1.903820065 | J29: 0.8651759599 | K29: 0.7907393208 | L29: 0.672511821 | M29: =SUM(C29:L29) -> 200.8983595 | O29: =+O9*$B$40 -> 0 | P29: 56.99666623 | Q29: 2658.98981 | R29: 1887.481181 | S29: 270.8900103 | T29: -2545.730217 | U29: 352.7987384 | V29: 363.9847005 | W29: 182.1757503 | X29: -94.30991502 | Y29: =SUM(O29:X29) -> 3133.276725 | AA29: =+Customers!D$20 -> 11551 | AB29: 34.78458307 | AD29: =+Y29/M29 -> 15.59632807
A30: Jul | B30: =+Customers!E$21 -> 0.3537044916 | C30: 0 | D30: 107.2611524 | E30: =+E10*$B30 -> 64.61292601 | F30: 2.391524934 | G30: 2.707272757 | H30: 56.58390551 | I30: 2.260939018 | J30: 1.027465842 | K30: 0.9390663628 | L30: 0.7986617245 | M30: 238.5829145 | O30: =+O10*$B$40 -> 0 | P30: -307.952814 | Q30: 3123.351221 | R30: 2326.021589 | S30: 300.5456634 | T30: -3008.812758 | U30: 416.9747988 | V30: 430.1955499 | W30: 196.5915333 | X30: -111.4654152 | Y30: 3365.449368 | AA30: =+Customers!E$20 -> 11639 | AB30: 40.99715002 | AD30: 14.10599487
A31: Aug | B31: =+Customers!F$21 -> 0.3541666667 | C31: 0 | D31: 96.71808316 | E31: =+E11*$B31 -> 58.26189831 | F31: 2.156453686 | G31: 2.441165565 | H31: 51.02207797 | I31: 2.038703512 | J31: 0.9264726747 | K31: 0.846762286 | L31: 0.7201585046 | M31: 215.1317757 | O31: =+O11*$B$40 -> 0 | P31: -135.7715934 | Q31: 3739.593726 | R31: 1968.840508 | S31: 281.5871815 | T31: -2709.525701 | U31: 263.8636373 | V31: 378.1800309 | W31: 168.6062324 | X31: -100.3779336 | Y31: 3854.996088 | AA31: =+Customers!F$20 -> 11679 | AB31: 36.840787 | AD31: 17.91923149
A32: Sep | B32: =+Customers!G$21 -> 0.3536733087 | C32: 0 | D32: 100.8050628 | E32: =+E12*$B32 -> 60.72384939 | F32: 2.247578137 | G32: 2.544320979 | H32: 53.17809869 | I32: 2.124852238 | J32: 0.9656222814 | K32: 0.8825436008 | L32: 0.7505899712 | M32: 224.222518 | O32: =+O12*$B$40 -> 0 | P32: 70.35061599 | Q32: 3498.036623 | R32: 2065.924273 | S32: 261.1220718 | T32: -2827.960487 | U32: 230.2532895 | V32: 481.3542413 | W32: 193.5737089 | X32: -125.3444442 | Y32: 3847.309892 | AA32: =+Customers!G$20 -> 11679 | AB32: 38.39755425 | AD32: 17.15844566
A33: Oct | B33: =+Customers!H$21 -> 0.3527575758 | C33: 0 | D33: 104.1022658 | E33: =+E13*$B33 -> 62.71004788 | F33: 2.321093508 | G33: 2.627542423 | H33: 54.91748544 | I33: 2.194353403 | J33: 0.9972065359 | K33: 0.9114104593 | L33: 0.7751407973 | M33: 231.5565463 | O33: =+O13*$B$40 -> 0 | P33: -943.8020698 | Q33: 3249.492817 | R33: 2077.994641 | S33: 195.352677 | T33: -2928.040713 | U33: 183.6323738 | V33: 803.9914047 | W33: 236.8649562 | X33: -129.7803266 | Y33: 2745.705761 | AA33: =+Customers!H$20 -> 11641 | AB33: 39.78293038 | AD33: 11.8576037
A34: Nov | B34: =+Customers!I$21 -> 0.3522534529 | C34: 0 | D34: 85.36471122 | E34: =+E14*$B34 -> 51.42275324 | F34: 1.9033157 | G34: 2.154606323 | H34: 45.03278818 | I34: 1.799387776 | J34: 0.8177175327 | K34: 0.7473640467 | L34: 0.635621807 | M34: 189.8782658 | O34: =+O14*$B$40 -> 0 | P34: -1094.616655 | Q34: 2655.040866 | R34: 1436.670055 | S34: 176.6389109 | T34: -2404.453568 | U34: 144.4373547 | V34: 703.9410756 | W34: 231.9147878 | X34: -106.5732344 | Y34: 1742.999593 | AA34: =+Customers!I$20 -> 11630 | AB34: 32.65318415 | AD34: 9.179563472
A35: Dec | B35: =+Customers!J$21 -> 0.3520934879 | C35: 0 | D35: 107.3218762 | E35: =+E15*$B35 -> 64.64950536 | F35: 2.392878849 | G35: 2.708805427 | H35: 56.61593939 | I35: 2.262219005 | J35: 1.028047521 | K35: 0.939597997 | L35: 0.7991138714 | M35: 238.7179836 | O35: =+O15*$B$40 -> 0 | P35: -1623.994423 | Q35: 3113.520978 | R35: 2097.560103 | S35: 270.433955 | T35: -3024.290754 | U35: 170.4571591 | V35: 1039.798476 | W35: 244.6511396 | X35: -134.0464428 | Y35: 2154.090191 | AA35: =+Customers!J$20 -> 11630 | AB35: 41.0521038 | AD35: 9.023577355
A36: Jan., '20 | B36: =+Customers!K$21 -> 0.3516490166 | C36: 0 | D36: 97.80209004 | E36: =+E16*$B36 -> 58.914892 | F36: 2.18062301 | G36: 2.468525912 | H36: 51.59392846 | I36: 2.061553102 | J36: 0.9368564904 | K36: 0.8562527154 | L36: 0.7282299712 | M36: 217.5429517 | O36: =+O16*$B$40 -> 0 | P36: -462.8822556 | Q36: 3183.564606 | R36: 1934.972578 | S36: 284.5540974 | T36: -2759.510219 | U36: 289.4029541 | V36: 980.5804773 | W36: 223.2316184 | X36: -122.3105048 | Y36: 3551.603352 | AA36: =+Customers!K$20 -> 11622 | AB36: 37.43640539 | AD36: 16.32598677
A37: Feb | B37: =+Customers!L$21 -> 0.3509619741 | C37: 0 | D37: 87.60395041 | E37: =+E17*$B37 -> 52.77164604 | F37: 1.95324241 | G37: 2.211124747 | H37: 46.214063 | I37: 1.846588306 | J37: 0.83916744 | K37: 0.7669684809 | L37: 0.6522950814 | M37: 194.8590459 | O37: =+O17*$B$40 -> 0 | P37: -1255.964618 | Q37: 3160.45422 | R37: 1643.89624 | S37: 222.9036003 | T37: -2476.605908 | U37: 315.3905987 | V37: 910.5464835 | W37: 123.2898263 | X37: -109.7712618 | Y37: 2534.13918 | AA37: =+Customers!L$20 -> 11620 | AB37: 33.53856212 | AD37: 13.00498608
A38: Mar | B38: =+Customers!M21 -> 0.3524915744 | C38: =+C18*$B38 -> 0 | D38: 91.07944551 | E38: 54.86524566 | F38: 2.030733029 | G38: 2.298846284 | H38: 48.04750485 | I38: 1.919847657 | J38: 0.8724595725 | K38: 0.7973962775 | L38: 0.6781734619 | M38: =SUM(C38:L38) -> 202.5896523 | O38: =+O18*$B$40 -> 0 | P38: -2367.012709 | Q38: 4335.213664 | R38: 1657.738365 | S38: 252.3113553 | T38: -2563.686495 | U38: 307.2754164 | V38: 562.2995911 | W38: 119.6482988 | X38: -113.6309578 | Y38: 2190.15653 | AA38: =+Customers!M$20 -> 11714 | AB38: 34.58932086
A39: Apr | B39: =+Customers!N21 -> 0.3553882015 | C39: =+C19*$B39 -> 0 | D39: 103.9427502 | E39: 62.6139574 | F39: 2.317536901 | G39: 2.623516246 | H39: 54.8333355 | I39: 2.190991 | J39: 0.9956785184 | K39: 0.910013907 | L39: 0.7739530507 | M39: 231.2017327 | O39: =+O19*$B$40 -> 0 | P39: -1758.350246 | Q39: 5611.642084 | R39: 1638.870321 | S39: 173.2282099 | T39: -2901.913587 | U39: 326.0758631 | V39: 671.7610978 | W39: 54.17339827 | X39: -128.6222871 | Y39: 3686.864854 | AA39: =+Customers!N$20 -> 11892 | AB39: 38.88357428
B40: =+Customers!O21 -> 0.3526060872 | C40: =SUM(C28:C39) -> 0 | D40: =SUM(D28:D39) -> 1178.991357 | E40: 710.2112894 | F40: 26.28712413 | G40: 29.75775582 | H40: 621.9580349 | I40: 24.85175203 | J40: 11.29368201 | K40: 10.32201408 | L40: 8.778716708 | M40: 2622.451726 | O40: =SUM(O28:O39) -> 0 | P40: =SUM(P28:P39) -> -10321.55756 | Q40: 41508.20821 | R40: 23122.31158 | S40: 3035.264072 | T40: -33173.96594 | U40: 3385.590395 | V40: 7758.919421 | W40: 2191.082211 | X40: -1388.239858 | Y40: =SUM(Y28:Y39) -> 36117.61253 | AA40: =SUM(AA28:AA39) -> 139705 | AB40: 37.54270393

Sheet Tonnages Collected
A1: WM of Skagit County
A2: Residential Recycling Tons Collected
D5: Less: | G5: WUTC
C6: Total | D6: CRC | G6: Res'l
C7: Tons | D7: Residual | E7: Net | F7: % | G7: Collected
A8: Month | C8: Collected | D8: Rate | E8: Tons | F8: Reg. | G8: Tons
A10: May, 19 | C10: 825.83 | D10: =+'CRC Composition'!C18 -> 0.179244768 | E10: =+C10-C10*D10 -> 677.8042932 | F10: =+Customers!C$21 -> 0.3500567676 | G10: =+F10*E10 -> 237.26998
A11: Jun | C11: 711.79 | D11: =+'CRC Composition'!E18 -> 0.1982036071 | E11: =+C11-C11*D11 -> 570.7106545 | F11: =+Customers!D$21 -> 0.3520143841 | G11: =+F11*E11 -> 200.8983595
A12: Jul | C12: 834.86 | D12: =+'CRC Composition'!G18 -> 0.1920488355 | E12: 674.5261092 | F12: =+Customers!E$21 -> 0.3537044916 | G12: 238.5829145
A13: Aug | C13: 750.91 | D13: =+'CRC Composition'!I18 -> 0.191073636 | E13: 607.430896 | F13: =+Customers!F$21 -> 0.3541666667 | G13: 215.1317757
A14: Sep | C14: 768.81 | D14: =+'CRC Composition'!K18 -> 0.175372305 | E14: 633.9820182 | F14: =+Customers!G$21 -> 0.3536733087 | G14: 224.222518
A15: Oct | C15: 784.49 | D15: =+'CRC Composition'!M18 -> 0.1632546606 | E15: 656.4183513 | F15: =+Customers!H$21 -> 0.3527575758 | G15: 231.5565463
A16: Nov | C16: 657.48 | D16: =+'CRC Composition'!O18 -> 0.1801442418 | E16: 539.0387639 | F16: =+Customers!I$21 -> 0.3522534529 | G16: 189.8782658
A17: Dec | C17: 808.83 | D17: =+'CRC Composition'!Q18 -> 0.1617570808 | E17: 677.9960203 | F17: =+Customers!I$21 -> 0.3522534529 | G17: 238.8264392
A18: Jan., '20 | C18: 757.49 | D18: =+'CRC Composition'!S18 -> 0.1833072397 | E18: 618.636599 | F18: =+Customers!K$21 -> 0.3516490166 | G18: 217.5429517
A19: Feb | C19: 680.71 | D19: =+'CRC Composition'!U18 -> 0.1843602612 | E19: 555.2141266 | F19: =+Customers!L$21 -> 0.3509619741 | G19: 194.8590459
A20: Mar | C20: 703.05 | D20: =+'CRC Composition'!W18 -> 0.1825102689 | E20: 574.7361555 | F20: =+Customers!M$21 -> 0.3524915744 | G20: 202.5896523
A21: Apr | C21: 807 | D21: =+'CRC Composition'!Y18 -> 0.1938524395 | E21: 650.5610813 | F21: =+Customers!N$21 -> 0.3553882015 | G21: 231.2017327
C22: =SUM(C10:C21) -> 9091.25 | D22: =(+G22-I22)/G22 -> 1 | E22: =SUM(E10:E21) -> 7437.055069 | G22: =SUM(G10:G21) -> 2622.560182

Sheet CRC Prices
A1: Cascade Recycling Center
A2: Monthly Price per ton of Commodities Sold
B5: Passback Price/ton schedule
I6: Natural | J6: Colored | K6: Mixed
A7: Month | B7: ONP 6 | C7: Mixed Paper | D7: OCC | E7: Alum. | F7: Tin | G7: Glass | H7: PET | I7: HDPE | J7: HDPE | K7: Plastics 3-7
A8: 2019-05-10 | B8: 0 | C8: -4.64 | D8: 49.12 | E8: 996.1 | F8: 127.47 | G8: -53.34 | H8: 170 | I8: 420 | J8: 230 | K8: -140
A9: 2019-06-10 | B9: 0 | C9: 0.63 | D9: 48.79 | E9: 935.71 | F9: 118.63 | G9: =+G8 -> -53.34 | H9: 185 | I9: 420 | J9: 230 | K9: -140
A10: 2019-07-10 | B10: 0 | C10: -2.88 | D10: 48.49 | E10: 975.64 | F10: 111.36 | G10: -53.34 | H10: 185 | I10: 420 | J10: 210 | K10: -140
A11: 2019-08-10 | B11: 0 | C11: -1.41 | D11: 64.47 | E11: 917.04 | F11: 115.86 | G11: =+G10 -> -53.34 | H11: 130 | I11: 410 | J11: 200 | K11: -140
A12: 2019-09-10 | B12: 0 | C12: 0.7 | D12: 57.78 | E12: 921.96 | F12: 102.94 | G12: =+G11 -> -53.34 | H12: 108.69 | I12: 500 | J12: 220 | K12: -167.5
A13: 2019-10-10 | B13: 0 | C13: -9.07 | D13: 51.84 | E13: 895.65 | F13: 74.38 | G13: =+G12 -> -53.34 | H13: 83.72 | I13: 806.59 | J13: 260 | K13: -167.5
A14: 2019-11-10 | B14: 0 | C14: -12.81 | D14: 51.58 | E14: 754.07 | F14: 81.9 | G14: =+G13 -> -53.34 | H14: 80.19 | I14: 860 | J14: 310 | K14: -167.5
A15: 2019-12-10 | B15: 0 | C15: -15.11 | D15: 48.09 | E15: 875.31 | F15: 99.69 | G15: =+G14 -> -53.34 | H15: 75.24 | I15: 1009.96 | J15: 260 | K15: -167.5
A16: 2020-01-10 | B16: 0 | C16: -4.72 | D16: 53.89 | E16: 884.94 | F16: 114.96 | G16: -53.34 | H16: 140 | I16: 1043.83 | J16: 260 | K16: -167.5
A17: 2020-02-10 | B17: 0 | C17: -14.27 | D17: 59.61 | E17: 837.7 | F17: 100.34 | G17: -53.34 | H17: 170 | I17: 1080 | J17: 160 | K17: -167.5
A18: 2020-03-10 | C18: -25.98 | D18: 78.99 | E18: 816.06 | F18: 109.72 | G18: -53.34 | H18: 160 | I18: 644.29 | J18: 150 | K18: -167.5
A19: 2020-04-10 | B19: =+B18 -> 0 | C19: -17.05 | D19: 90.33 | E19: 712.74 | F19: 66.55 | G19: -53.34 | H19: 150 | I19: 680 | J19: 60 | K19: -167.5
A20: Average | B20: =+'Commodity Revenue'!AA20 ->  | C20: =+'Commodity Revenue'!AB20 -> -8.754902568 | D20: =+'Commodity Revenue'!AC20 -> 58.44711983 | E20: =+'Commodity Revenue'!AD20 -> 879.6398033 | F20: =+'Commodity Revenue'!AE20 -> 102.0030141 | G20: =+'Commodity Revenue'!AF20 -> -53.34 | H20: =+'Commodity Revenue'!AG20 -> 136.2366958 | I20: =+'Commodity Revenue'!AH20 -> 687.0405744 | J20: =+'Commodity Revenue'!AI20 -> 212.2809025 | K20: =+'Commodity Revenue'!AJ20 -> -158.1430734

Sheet CRC Composition
A1: Cascade Recycling Center
A2: Tonnage Delivered and Processed
A5: Stream Composition-CRC | AC5: %
B6: 2019-05-05 | D6: 2019-06-05 | F6: 2019-07-05 | H6: 2019-08-05 | J6: 2019-09-05 | L6: 2019-10-05 | N6: 2019-11-05 | P6: 2019-12-05 | R6: 2020-01-05 | T6: 2020-02-05 | V6: 2020-03-11 | X6: 2020-04-11 | Z6: Total | AC6: Excluding
B7: Tons | D7: Tons | F7: Tons | H7: Tons | J7: Tons | L7: Tons | N7: Tons | P7: Tons | R7: Tons | T7: Tons | V7: Tons | X7: Tons | Z7: Tons | AC7: Residue
A8: Newspaper | C8: =+B8/B$19 -> 0 | D8: 0 | E8: =+D8/D$19 -> 0 | F8: 0 | G8: =+F8/F$19 -> 0 | H8: 0 | I8: =+H8/H$19 -> 0 | J8: 0 | K8: =+J8/J$19 -> 0 | L8: 0 | M8: =+L8/L$19 -> 0 | N8: 0 | O8: =+N8/N$19 -> 0 | P8: 0 | Q8: =+P8/P$19 -> 0 | R8: 0 | S8: =+R8/R$19 -> 0 | T8: 0 | U8: =+T8/T$19 -> 0 | V8: 0 | W8: =V8/V$19 -> 0 | X8: 0 | Y8: =X8/X$19 -> 0 | Z8: =+P8+N8+L8+J8+H8+F8+D8+B8+R8+T8+V8+X8 -> 0 | AA8: =+Z8/$Z$19 -> 0 | AC8: =+Z8/($Z$19-$Z$18) -> 0
A9: Mix Paper | B9: 2966.64 | C9: =+B9/B$19 -> 0.3680676523 | D9: 2461.93 | E9: 0.3453532396 | F9: 3094.58 | G9: =+F9/F$19 -> 0.3782670451 | H9: 2511.27 | I9: =+H9/H$19 -> 0.3267712847 | J9: 2540 | K9: =+J9/J$19 -> 0.3320999438 | L9: 2379.19 | M9: =+L9/L$19 -> 0.3087206956 | N9: 2565.58 | O9: =+N9/N$19 -> 0.3554887385 | P9: 3250.05 | Q9: =+P9/P$19 -> 0.3856220938 | R9: 3279.3 | S9: =+R9/R$19 -> 0.367248342 | T9: 2739.03 | U9: =+T9/T$19 -> 0.3831089814 | V9: 3412.03 | W9: =V9/V$19 -> 0.4361988139 | X9: 3429.94 | Y9: 0.4180697031 | Z9: =+P9+N9+L9+J9+H9+F9+D9+B9+R9+T9+V9+X9 -> 34629.54 | AA9: =+Z9/$Z$19 -> 0.3677728958 | AC9: =+Z9/($Z$19-$Z$18) -> 0.4495759999
A10: OCC | B10: 2060.39 | C10: 0.255630245 | D10: 1496.03 | E10: 0.2098592596 | F10: 1750.81 | G10: =+F10/F$19 -> 0.2140108594 | H10: 1911.13 | I10: =+H10/H$19 -> 0.2486799131 | J10: 1808.39 | K10: =+J10/J$19 -> 0.2364433926 | L10: 2057.22 | M10: =+L10/L$19 -> 0.2669422742 | N10: 1852.57 | O10: =+N10/N$19 -> 0.2566935244 | P10: 1969.95 | Q10: =+P10/P$19 -> 0.2337367867 | R10: 1864.32 | S10: =+R10/R$19 -> 0.2087849324 | T10: 1539.44 | U10: =+T10/T$19 -> 0.2153219535 | V10: 1359.46 | W10: =V10/V$19 -> 0.1737953182 | X10: 1190.74 | Y10: 0.1451373255 | Z10: 20860.45 | AA10: 0.2215423047 | AC10: 0.2708195855
A11: Aluminum | B11: 64.19 | C11: 0.007963980328 | D11: 28.92 | E11: 0.004056823586 | F11: 58.58 | G11: =+F11/F$19 -> 0.007160546343 | H11: 67.99 | I11: =+H11/H$19 -> 0.008846989629 | J11: 57.96 | K11: =+J11/J$19 -> 0.007578154623 | L11: 60.14 | M11: =+L11/L$19 -> 0.007803690598 | N11: 85.63 | O11: =+N11/N$19 -> 0.01186495867 | P11: 52.99 | Q11: =+P11/P$19 -> 0.006287323195 | R11: 60.98 | S11: =+R11/R$19 -> 0.006829141553 | T11: 55.48 | U11: =+T11/T$19 -> 0.007760004923 | V11: 74.78 | W11: =V11/V$19 -> 0.009559982562 | X11: 104.47 | Y11: 0.01273367519 | Z11: 772.11 | AA11: 0.008199968309 | AC11: 0.01002387341
A12: Tin Cans | B12: 79.86 | C12: 0.009908139414 | D12: 48.26 | E12: 0.006769789289 | F12: 56.24 | G12: =+F12/F$19 -> 0.006874515642 | H12: 52.05 | I12: =+H12/H$19 -> 0.006772846157 | J12: 62.71 | K12: =+J12/J$19 -> 0.008199207667 | L12: 82.36 | M12: =+L12/L$19 -> 0.01068692979 | N12: 51.4 | O12: =+N12/N$19 -> 0.007122023541 | P12: 86.22 | Q12: =+P12/P$19 -> 0.01023010013 | R12: 94.07 | S12: =+R12/R$19 -> 0.01053488596 | T12: 74.18 | U12: =+T12/T$19 -> 0.01037557976 | V12: 79.44 | W12: =V12/V$19 -> 0.01015572365 | X12: 107.26 | Y12: 0.01307374367 | Z12: 874.05 | AA12: 0.009282592248 | AC12: 0.01134730357
A13: Glass | B13: 1267.58 | C13: 0.1572672096 | D13: 1568.3 | E13: 0.2199971103 | F13: 1465.99 | G13: =+F13/F$19 -> 0.1791957892 | H13: 1514.28 | I13: =+H13/H$19 -> 0.1970410274 | J13: 1700.54 | K13: =+J13/J$19 -> 0.2223422198 | L13: 1750.58 | M13: =+L13/L$19 -> 0.2271530543 | N13: 1230.2 | O13: =+N13/N$19 -> 0.1704574584 | P13: 1632.98 | Q13: =+P13/P$19 -> 0.1937549166 | R13: 1876.73 | S13: =+R13/R$19 -> 0.2101747266 | T13: 1298.85 | U13: =+T13/T$19 -> 0.1816705551 | V13: 1332.25 | W13: =V13/V$19 -> 0.1703167527 | X13: 1629.98 | Y13: 0.1986755613 | Z13: 18268.26 | AA13: 0.1940127094 | AC13: 0.2371666287
A14: PET | B14: 87.94 | C14: 0.01091061583 | D14: 63.07 | E14: 0.008847298186 | F14: 96.62 | G14: =+F14/F$19 -> 0.01181037876 | H14: 84.69 | I14: =+H14/H$19 -> 0.01102002576 | J14: 59.84 | K14: =+J14/J$19 -> 0.00782396088 | L14: 40.46 | M14: =+L14/L$19 -> 0.005250038603 | N14: 58 | O14: =+N14/N$19 -> 0.008036524619 | P14: 22.42 | Q14: =+P14/P$19 -> 0.002660158257 | R14: 33.09 | S14: =+R14/R$19 -> 0.003705744408 | T14: 56.03 | U14: =+T14/T$19 -> 0.007836933595 | V14: 54.79 | W14: =V14/V$19 -> 0.007004432263 | X14: 73 | Y14: 0.008897849036 | Z14: 729.95 | AA14: 0.007752220367 | AC14: 0.009476533652
A15: HDPE Natl | B15: 30.31 | C15: 0.003760527243 | D15: 26.77 | E15: 0.003755227088 | F15: 34.13 | G15: =+F15/F$19 -> 0.004171892228 | H15: 29.12 | I15: =+H15/H$19 -> 0.003789150434 | J15: 23.81 | K15: =+J15/J$19 -> 0.003113110103 | L15: 28.46 | M15: =+L15/L$19 -> 0.003692933728 | N15: 19.02 | O15: =+N15/N$19 -> 0.002635425832 | P15: 22.51 | Q15: =+P15/P$19 -> 0.002670836858 | R15: 43.25 | S15: =+R15/R$19 -> 0.004843561367 | T15: 23.68 | U15: =+T15/T$19 -> 0.003312128994 | V15: 27.46 | W15: =V15/V$19 -> 0.003510525825 | X15: 23.2 | Y15: 0.002827809557 | Z15: 331.72 | AA15: 0.003522935187 | AC15: 0.004306535712
A16: HDPE Col | B16: 25.73 | C16: 0.00319229185 | D16: 17.7 | E16: 0.002482910701 | F16: 29.45 | G16: =+F16/F$19 -> 0.003599830826 | H16: 23.67 | I16: =+H16/H$19 -> 0.003079985947 | J16: 25.59 | K16: =+J16/J$19 -> 0.00334584156 | L16: 28.86 | M16: =+L16/L$19 -> 0.003744837224 | N16: 34.09 | O16: =+N16/N$19 -> 0.004723536625 | P16: 8.39 | Q16: =+P16/P$19 -> 0.0009954829516 | R16: 22.53 | S16: =+R16/R$19 -> 0.002523131505 | T16: 27.54 | U16: =+T16/T$19 -> 0.003852028399 | V16: 28.5 | W16: =V16/V$19 -> 0.003643480918 | X16: 31.13 | Y16: 0.003794384116 | Z16: 303.18 | AA16: 0.003219834469 | AC16: 0.003936016813
A17: #3 - 7 | B17: 32.68 | C17: 0.004054570449 | D17: 4.81 | E17: 0.0006747344899 | F17: 23.4 | G17: =+F17/F$19 -> 0.002860307006 | H17: 22.48 | I17: =+H17/H$19 -> 0.002925140857 | J17: 28.16 | K17: =+J17/J$19 -> 0.003681863944 | L17: 21.2 | M17: =+L17/L$19 -> 0.002750885279 | N17: 20.45 | O17: =+N17/N$19 -> 0.002833567732 | P17: 19.26 | Q17: =+P17/P$19 -> 0.002285220697 | R17: 18.29 | S17: =+R17/R$19 -> 0.002048294506 | T17: 17.17 | U17: =+T17/T$19 -> 0.002401573261 | V17: 25.85 | W17: =V17/V$19 -> 0.003304701113 | X17: 24.1 | Y17: 0.002937509065 | Z17: 257.85 | AA17: 0.002738420469 | AC17: 0.00334752271
A18: Residue | B18: =1444.02+0.7 -> 1444.72 | C18: 0.179244768 | D18: =1412.74+0.2 -> 1412.94 | E18: 0.1982036071 | F18: =0.25+1570.89 -> 1571.14 | G18: =+F18/F$19 -> 0.1920488355 | H18: =1468.22+0.2 -> 1468.42 | I18: =+H18/H$19 -> 0.191073636 | J18: =0.18+1341.12 -> 1341.3 | K18: =+J18/J$19 -> 0.175372305 | L18: =1257.93+0.21 -> 1258.14 | M18: =+L18/L$19 -> 0.1632546606 | N18: =1299.91+0.2 -> 1300.11 | O18: =+N18/N$19 -> 0.1801442418 | P18: =1363.01+0.29 -> 1363.3 | Q18: =+P18/P$19 -> 0.1617570808 | R18: =0.25+1636.57 -> 1636.82 | S18: =+R18/R$19 -> 0.1833072397 | T18: =0.17+1317.91 -> 1318.08 | U18: =+T18/T$19 -> 0.1843602612 | V18: =0.19+1427.44 -> 1427.63 | W18: =V18/V$19 -> 0.1825102689 | X18: 1590.41 | Y18: 0.1938524395 | Z18: 17133.01 | AA18: 0.181956119
B19: =SUM(B8:B18) -> 8060.04 | C19: 1 | D19: 7128.73 | E19: =SUM(E8:E18) -> 1 | F19: 8180.94 | G19: =SUM(G8:G18) -> 1 | H19: 7685.1 | I19: =SUM(I8:I18) -> 1 | J19: 7648.3 | K19: =SUM(K8:K18) -> 1 | L19: 7706.61 | M19: =SUM(M8:M18) -> 1 | N19: 7217.05 | O19: =SUM(O8:O18) -> 1 | P19: 8428.07 | Q19: =SUM(Q8:Q18) -> 1 | R19: =SUM(R8:R18) -> 8929.38 | S19: =SUM(S8:S18) -> 1 | T19: =SUM(T8:T18) -> 7149.48 | U19: =SUM(U8:U18) -> 1 | V19: =SUM(V8:V18) -> 7822.19 | W19: =SUM(W8:W18) -> 1 | X19: =SUM(X8:X18) -> 8204.23 | Y19: =SUM(Y8:Y18) -> 1 | Z19: =SUM(Z8:Z18) -> 94160.12 | AA19: 1 | AC19: =SUM(AC8:AC18) -> 1

Sheet Customers
A1: Waste Management of Skagit County
A2: Recycling Customers by Jurisdiction - per Enspire
C5: 2019-05-01 | D5: 2019-06-01 | E5: 2019-07-01 | F5: 2019-08-01 | G5: 2019-09-01 | H5: 2019-10-01 | I5: 2019-11-01 | J5: 2019-12-01 | K5: 2020-01-01 | L5: 2020-02-01 | M5: 2020-03-01 | N5: 2020-04-01 | O5: Total | P5: %
A6: Contract Cities:
B7: Anacortes | C7: 6696 | D7: 6702 | E7: 6703 | F7: 6710 | G7: 6712 | H7: 6715 | I7: 6718 | J7: 6718 | K7: 6722 | L7: 6721 | M7: 6722 | N7: 6727 | O7: =SUM(C7:N7) -> 80566 | P7: =+O7/$O$23 -> 0.2033432019
B8: Burlington | C8: 2195 | D8: 2199 | E8: 2201 | F8: 2205 | G8: 2213 | H8: 2211 | I8: 2216 | J8: 2215 | K8: 2228 | L8: 2280 | M8: 2283 | N8: 2276 | O8: 26722 | P8: 0.06744454288
B9: Darrington | C9: 490 | D9: 487 | E9: 487 | F9: 487 | G9: 486 | H9: 484 | I9: 484 | J9: 489 | K9: 493 | L9: 494 | M9: 493 | N9: 491 | O9: 5865 | P9: 0.0148028682
B10: Mount Vernon | C10: 9441 | D10: 9504 | E10: 9499 | F10: 9506 | G10: 9536 | H10: 9545 | I10: 9560 | J10: 9568 | K10: 9572 | L10: 9574 | M10: 9581 | N10: 9597 | O10: 114483 | P10: 0.2889474441
B11: Stanwood | C11: 1815 | D11: 1816 | E11: 1820 | F11: 1838 | G11: 1844 | H11: 1856 | I11: 1867 | J11: 1869 | K11: 1875 | L11: 1884 | M11: 1895 | N11: 1913 | O11: 22292 | P11: 0.05626351882
B12: Other | C12: =543+1 -> 544 | D12: =554+1 -> 555 | E12: =556+1 -> 557 | F12: =550+1 -> 551 | G12: =552 -> 552 | H12: 548 | I12: 541 | J12: 542 | K12: 538 | L12: 536 | M12: 544 | N12: 566 | O12: 6574 | P12: 0.01659233683
B13: Total | C13: =SUM(C7:C12) -> 21181 | D13: 21263 | E13: 21267 | F13: 21297 | G13: 21343 | H13: 21359 | I13: 21386 | J13: 21401 | K13: 21428 | L13: 21489 | M13: 21518 | N13: 21570 | O13: 256502 | P13: 0.6473939128
C14: =+C13/C23 -> 0.6499432324 | D14: 0.6479856159 | E14: 0.6462955084 | F14: 0.6458333333 | G14: 0.6463266913 | H14: 0.6472424242 | I14: 0.6477465471 | J14: 0.6479065121 | K14: 0.6483509834 | L14: 0.6490380259 | M14: 0.6475084256 | N14: 0.6446117985 | O14: 0.6473939128
A16: WUTC:
B17: Skagit County | C17: =169+5630 -> 5799 | D17: =5700+168 -> 5868 | E17: =173+5752 -> 5925 | F17: =5761+173 -> 5934 | G17: =5774+1+173 -> 5948 | H17: =5737+1+175 -> 5913 | I17: =5746+2+175 -> 5923 | J17: =2+173+5742 -> 5917 | K17: =2+172+5745 -> 5919 | L17: =5742+2+173 -> 5917 | M17: =5795+2+173 -> 5970 | N17: =2+172+5860 -> 6034 | O17: =SUM(C17:N17) -> 71067 | P17: =+O17/$O$23 -> 0.1793683605
B18: Island County | C18: 2597 | D18: 2645 | E18: 2666 | F18: 2683 | G18: 2675 | H18: 2658 | I18: 2654 | J18: 2662 | K18: 2654 | L18: 2649 | M18: 2680 | N18: 2751 | O18: =SUM(C18:N18) -> 31974 | P18: =+O18/$O$23 -> 0.08070024003
B19: Snohomish County | C19: 3012 | D19: 3038 | E19: 3048 | F19: 3062 | G19: 3056 | H19: 3070 | I19: 3053 | J19: 3051 | K19: 3049 | L19: 3054 | M19: 3064 | N19: 3107 | O19: =SUM(C19:N19) -> 36664 | P19: =+O19/$O$23 -> 0.09253748672
B20: Total | C20: =SUM(C17:C19) -> 11408 | D20: 11551 | E20: 11639 | F20: 11679 | G20: 11679 | H20: 11641 | I20: 11630 | J20: 11630 | K20: 11622 | L20: 11620 | M20: =SUM(M17:M19) -> 11714 | N20: =SUM(N17:N19) -> 11892 | O20: =SUM(O17:O19) -> 139705 | P20: =+O20/$O$23 -> 0.3526060872
C21: =+C20/C$23 -> 0.3500567676 | D21: =+D20/D$23 -> 0.3520143841 | E21: 0.3537044916 | F21: 0.3541666667 | G21: 0.3536733087 | H21: 0.3527575758 | I21: 0.3522534529 | J21: 0.3520934879 | K21: 0.3516490166 | L21: 0.3509619741 | M21: 0.3524915744 | N21: 0.3553882015 | O21: 0.3526060872
B23: Grand Total | C23: =+C20+C13 -> 32589 | D23: 32814 | E23: 32906 | F23: 32976 | G23: 33022 | H23: 33000 | I23: 33016 | J23: 33031 | K23: 33050 | L23: 33109 | M23: 33232 | N23: 33462 | O23: 396207 | P23: =+O23/$O$23 -> 1
